bitfinex/quotes_BTCUSD_20241120
["timestamp","ask_amount","ask_price","bid_price","bid_amount"]
[1732061021562,0.01,92124.0,92090.0,0.00217148]
[1732061021563,0.01,92118.0,92090.0,0.00217148]
[1732061021794,0.01,92118.0,92091.0,0.10906255]
[1732061022208,0.01,92118.0,92100.0,0.005]
[1732061022626,0.01,92118.0,92091.0,0.10906255]
[1732061023061,0.002,92117.0,92091.0,0.11406255]
[1732061023511,0.002,92118.0,92091.0,0.11406255]
[1732061023729,0.002,92115.0,92091.0,0.11406255]
[1732061023933,0.002,92114.0,92091.0,0.11406255]
[1732061024389,0.002,92118.0,92092.0,0.00217148]
[1732061024601,0.002,92116.0,92092.0,0.11123403]
[1732061025437,0.002,92119.0,92092.0,0.11123403]
[1732061025664,0.002,92116.0,92092.0,0.11623403]
[1732061027236,0.01,92120.0,92092.0,0.11123403]
[1732061027442,0.002,92117.0,92092.0,0.11123403]
[1732061027672,0.002,92116.0,92092.0,0.11623403]
[1732061027890,0.002,92119.0,92094.0,0.1]
[1732061028129,0.002,92130.0,92096.0,0.1]
[1732061028350,0.002,92120.0,92098.0,0.1]
[1732061028571,0.002,92120.0,92092.0,0.005]
[1732061028572,0.002,92120.0,92100.0,0.1]
[1732061028802,0.002,92130.0,92102.0,0.1]
[1732061029013,0.002,92127.0,92103.0,0.10906255]
[1732061029227,0.0201831,92126.0,92103.0,0.10906255]
[1732061029463,0.002,92119.0,92103.0,0.10906255]
[1732061030796,0.002,92130.0,92103.0,0.10906255]
[1732061031009,0.16155057,92129.0,92091.0,0.0017086]
[1732061031222,0.002,92127.0,92103.0,0.005]
[1732061031440,0.0201877,92126.0,92103.0,0.005]
[1732061031685,0.002,92120.0,92093.0,0.1]
[1732061031902,0.002,92120.0,92095.0,0.1]
[1732061032136,0.0476,92120.0,92103.0,0.005]
[1732061032342,0.002,92117.0,92103.0,0.005]
[1732061032549,0.002,92117.0,92097.0,0.1]
[1732061033415,0.002,92117.0,92091.0,0.0017086]
[1732061033637,0.0456,92120.0,92093.0,0.1]
[1732061033638,0.002,92113.0,92093.0,0.1]
[1732061033863,0.002,92113.0,92094.0,0.10906255]
[1732061034070,0.002,92113.0,92095.0,0.1]
[1732061034295,0.002,92113.0,92093.0,0.005]
[1732061034560,0.0789,92112.0,92093.0,0.005]
[1732061034797,0.0789,92112.0,92091.0,0.11077115]
[1732061035216,0.0789,92112.0,92095.0,0.005]
[1732061035425,0.02018897,92111.0,92095.0,0.005]
[1732061035634,0.0789,92112.0,92091.0,0.0017086]
[1732061035846,0.002,92107.0,92091.0,0.0067086]
[1732061036051,0.0809,92112.0,92091.0,0.0067086]
[1732061036256,0.02019202,92111.0,92091.0,0.0067086]
[1732061036479,0.0809,92112.0,92091.0,0.0067086]
[1732061036706,0.02019183,92111.0,92091.0,0.0067086]
[1732061036923,0.0809,92112.0,92091.0,0.0067086]
[1732061037142,0.02019183,92111.0,92091.0,0.0067086]
[1732061037354,0.02019183,92110.0,92091.0,0.00388014]
[1732061037569,0.0789,92112.0,92091.0,0.00388014]
[1732061037570,0.002,92111.0,92095.0,0.005]
[1732061037787,0.02019807,92110.0,92095.0,0.005]
[1732061037986,0.0789,92112.0,92091.0,0.00388014]
[1732061038224,0.02019807,92111.0,92091.0,0.00388014]
[1732061038456,0.002,92110.0,92091.0,0.00888014]
[1732061038882,0.0789,92112.0,92091.0,0.00388014]
[1732061039106,0.0809,92112.0,92091.0,0.00888014]
[1732061039330,0.02020953,92111.0,92091.0,0.00888014]
[1732061039565,0.0809,92112.0,92091.0,0.00888014]
[1732061039807,0.002,92110.0,92091.0,0.0067086]
[1732061040281,0.02021744,92109.0,92091.0,0.0067086]
[1732061040500,0.002,92108.0,92091.0,0.0017086]
[1732061040714,0.0769,92112.0,92091.0,0.0017086]
[1732061040715,0.002,92111.0,92091.0,0.0067086]
[1732061041175,0.0008549,92116.0,92092.0,0.11123409]
[1732061041424,0.0008549,92116.0,92095.0,0.01]
[1732061041651,0.0008549,92116.0,92097.0,0.123]
[1732061041652,0.002,92109.0,92097.0,0.123]
[1732061041905,0.002,92109.0,92099.0,0.1]
[1732061042112,0.0008549,92116.0,92101.0,0.1]
[1732061042331,0.0008549,92116.0,92103.0,0.1]
[1732061042550,0.0008549,92116.0,92104.0,0.10906255]
[1732061042786,0.0028549,92116.0,92104.0,0.10906255]
[1732061042995,0.0028549,92116.0,92105.0,0.00217107]
[1732061043231,0.0028549,92116.0,92112.0,0.123]
[1732061043444,0.0028549,92116.0,92114.0,0.1]
[1732061043668,0.0028549,92116.0,92115.0,0.24423323]
[1732061043907,0.0028549,92116.0,92115.0,0.25206255]
[1732061044116,0.1232,92156.0,92122.0,0.023]
[1732061044329,0.1232,92156.0,92124.0,0.1]
[1732061044591,0.1232,92156.0,92126.0,0.1]
[1732061044592,0.02023102,92155.0,92126.0,0.1]
[1732061044809,0.0769,92156.0,92128.0,0.1]
[1732061045028,0.0769,92167.0,92138.0,0.01]
[1732061045271,0.0769,92167.0,92135.0,0.10906255]
[1732061045272,0.02022943,92166.0,92140.0,0.1]
[1732061045519,0.001,92156.0,92142.0,0.1]
[1732061045778,0.001,92156.0,92144.0,0.1]
[1732061046007,0.001,92156.0,92146.0,0.1]
[1732061046242,0.001,92156.0,92144.0,0.1]
[1732061046243,0.001,92156.0,92147.0,0.10906255]
[1732061046454,0.0028543,92168.0,92147.0,0.10906255]
[1732061046670,0.0028543,92168.0,92148.0,0.00217012]
[1732061046892,0.0008543,92168.0,92150.0,0.1]
[1732061047104,0.0008543,92168.0,92152.0,0.1]
[1732061047319,0.0008543,92168.0,92139.0,0.01]
[1732061047320,0.0008543,92168.0,92154.0,0.1]
[1732061047543,0.0008543,92168.0,92155.0,0.10906255]
[1732061048179,0.0008543,92168.0,92156.0,0.00216976]
[1732061048396,0.0008543,92168.0,92157.0,0.10906255]
[1732061048637,0.0008543,92168.0,92158.0,0.00216976]
[1732061048850,0.0008543,92168.0,92159.0,0.10906255]
[1732061049088,0.0008543,92168.0,92160.0,0.00216969]
[1732061049287,0.0008543,92168.0,92161.0,0.10906255]
[1732061049495,0.0008543,92168.0,92162.0,0.00216969]
[1732061049753,0.0008543,92168.0,92163.0,0.10906255]
[1732061050005,0.0008543,92168.0,92164.0,0.00216969]
[1732061050447,0.0008543,92168.0,92165.0,0.10906255]
[1732061050656,0.0008543,92168.0,92166.0,0.00216969]
[1732061050891,0.0008543,92168.0,92167.0,0.20906255]
[1732061051576,0.0008543,92168.0,92167.0,0.21123203]
[1732061051995,0.0008543,92168.0,92167.0,0.24657605]
[1732061052195,0.0008543,92168.0,92167.0,0.24440657]
[1732061053798,0.0008543,92168.0,92134.0,0.24009399]
[1732061053799,0.0008543,92168.0,92154.0,0.023]
[1732061054022,0.0008543,92168.0,92156.0,0.1]
[1732061054235,0.0008543,92168.0,92157.0,0.10906255]
[1732061054447,0.0008543,92168.0,92158.0,0.1]
[1732061054674,0.0008543,92168.0,92160.0,0.1]
[1732061054881,0.0008543,92168.0,92109.0,0.28811279]
[1732061054882,0.0008543,92168.0,92136.0,0.0832]
[1732061055126,0.10906255,92167.0,92154.0,0.006]
[1732061055347,0.00216992,92167.0,92154.0,0.006]
[1732061055798,0.00216992,92167.0,92138.0,0.00217027]
[1732061056026,0.002,92162.0,92139.0,0.10906255]
[1732061056451,0.00216992,92161.0,92131.0,0.03435559]
[1732061056665,0.00216992,92161.0,92106.0,0.1]
[1732061056666,0.00216992,92161.0,92133.0,0.1]
[1732061056898,0.00216992,92161.0,92135.0,0.1]
[1732061057133,0.00216992,92161.0,92136.0,0.005]
[1732061057405,0.00216992,92164.0,92137.0,0.00217038]
[1732061057648,0.10906255,92163.0,92137.0,0.00217038]
[1732061057867,0.00216992,92162.0,92137.0,0.00217038]
[1732061058533,0.00216992,92162.0,92137.0,0.00717038]
[1732061058742,0.00216992,92162.0,92137.0,0.005]
[1732061060072,0.00216992,92162.0,92135.0,0.1]
[1732061060073,0.00416992,92162.0,92135.0,0.1]
[1732061060521,0.00416992,92162.0,92137.0,0.005]
[1732061060958,0.00416992,92162.0,92135.0,0.13562533]
[1732061061166,0.00416992,92162.0,92135.0,0.14062533]
[1732061061650,0.00416992,92162.0,92135.0,0.13562533]
[1732061061859,0.00416992,92162.0,92137.0,0.005]
[1732061062759,0.00302422,92162.0,92137.0,0.005]
[1732061063188,0.002,92154.0,92135.0,0.13733393]
[1732061063431,0.0502,92152.0,92135.0,0.0017086]
[1732061063701,0.00216992,92151.0,92135.0,0.0067086]
[1732061064098,0.002,92148.0,92135.0,0.0017086]
[1732061064314,0.00216992,92147.0,92135.0,0.0017086]
[1732061064530,0.00216992,92147.0,92135.0,0.0067086]
[1732061065032,0.002,92144.0,92135.0,0.0017086]
[1732061065307,0.00216992,92147.0,92135.0,0.0017086]
[1732061065308,0.1242,92136.0,92135.0,0.0017086]
[1732061065502,0.1242,92136.0,92135.0,0.0067086]
[1732061065503,0.23543247,92136.0,92135.0,0.0067086]
[1732061065730,0.23326255,92136.0,92135.0,0.0067086]
[1732061066383,0.022,92139.0,92135.0,0.0067086]
[1732061066612,0.00216992,92138.0,92135.0,0.0017086]
[1732061066830,0.11123247,92146.0,92135.0,0.0067086]
[1732061067262,0.11123247,92146.0,92135.0,0.0017086]
[1732061067688,0.11123247,92146.0,92135.0,0.0067086]
[1732061068123,0.11123247,92146.0,92135.0,0.0017086]
[1732061068354,0.11123247,92146.0,92135.0,0.0067086]
[1732061070822,0.00216992,92150.0,92135.0,0.0067086]
[1732061071067,0.0761,92160.0,92135.0,0.0067086]
[1732061071287,0.00216992,92159.0,92135.0,0.04984199]
[1732061071529,0.10906255,92158.0,92135.0,0.0067086]
[1732061071737,0.00216992,92157.0,92135.0,0.0067086]
[1732061071944,0.002,92150.0,92135.0,0.0067086]
[1732061072631,0.002,92148.0,92135.0,0.0017086]
[1732061072849,0.00216992,92155.0,92135.0,0.0047086]
[1732061072850,0.002,92150.0,92135.0,0.0047086]
[1732061073065,0.00216992,92149.0,92135.0,0.0047086]
[1732061073511,0.00216992,92153.0,92135.0,0.0017086]
[1732061073723,0.00216992,92153.0,92135.0,0.0047086]
[1732061074159,0.00216992,92153.0,92135.0,0.0017086]
[1732061074587,0.00216992,92153.0,92135.0,0.0037086]
[1732061074803,0.01,92151.0,92135.0,0.0037086]
[1732061075007,0.11123247,92150.0,92135.0,0.0037086]
[1732061075225,0.002,92144.0,92135.0,0.0037086]
[1732061075441,0.11123247,92143.0,92135.0,0.0037086]
[1732061075675,0.11123247,92143.0,92135.0,0.0017086]
[1732061075906,0.002,92140.0,92135.0,0.0017086]
[1732061076116,0.00216992,92139.0,92135.0,0.0047086]
[1732061076571,0.00216992,92139.0,92135.0,0.0017086]
[1732061076804,0.002,92138.0,92135.0,0.0047086]
[1732061077060,0.0761,92136.0,92135.0,0.0047086]
[1732061077278,0.0761,92136.0,92135.0,0.0017086]
[1732061077493,0.0761,92136.0,92135.0,0.0047086]
[1732061077494,0.18516255,92136.0,92135.0,0.0047086]
[1732061077713,0.18716255,92136.0,92135.0,0.0047086]
[1732061077926,0.18933247,92136.0,92135.0,0.0047086]
[1732061079099,0.18933247,92136.0,92135.0,0.0017086]
[1732061079756,0.18933247,92136.0,92135.0,0.0047086]
[1732061079985,0.18733247,92136.0,92135.0,0.0047086]
[1732061080313,0.00216992,92139.0,92135.0,0.0047086]
[1732061080526,0.00216992,92139.0,92135.0,0.0017086]
[1732061081147,0.00216992,92143.0,92135.0,0.0047086]
[1732061082833,0.00216992,92143.0,92135.0,0.0017086]
[1732061083044,0.00216992,92143.0,92135.0,0.0047086]
[1732061083626,0.002,92141.0,92135.0,0.0017086]
[1732061083851,0.002,92142.0,92135.0,0.0047086]
[1732061084117,0.00216992,92141.0,92135.0,0.0047086]
[1732061084817,0.00416992,92145.0,92135.0,0.0047086]
[1732061085043,0.11123247,92145.0,92135.0,0.0047086]
[1732061085256,0.0457,92153.0,92135.0,0.0047086]
[1732061085257,0.00216992,92144.0,92135.0,0.0047086]
[1732061085473,0.10906255,92148.0,92135.0,0.0017086]
[1732061085676,0.00216992,92147.0,92135.0,0.0047086]
[1732061086139,0.00216992,92147.0,92135.0,0.0017086]
[1732061086567,0.00216992,92147.0,92135.0,0.0047086]
[1732061086783,0.002,92141.0,92135.0,0.0047086]
[1732061086992,0.002,92144.0,92135.0,0.0017086]
[1732061087199,0.00216992,92143.0,92135.0,0.0047086]
[1732061087411,0.00216992,92143.0,92135.0,0.00150731]
[1732061087635,0.00030069,92135.0,92128.0,0.04129168]
[1732061087844,0.00030069,92135.0,92121.0,0.10217073]
[1732061087845,0.00030069,92135.0,92121.0,0.00217073]
[1732061088789,0.00030069,92135.0,92123.0,0.1]
[1732061089023,0.00030069,92135.0,92124.0,0.11123314]
[1732061089249,0.00030069,92135.0,92125.0,0.1]
[1732061089477,0.00030069,92135.0,92126.0,0.11123314]
[1732061089704,0.00030069,92135.0,92127.0,0.1]
[1732061089932,0.00030069,92135.0,92128.0,0.00217059]
[1732061090353,0.00030069,92135.0,92130.0,0.1]
[1732061090596,0.00030069,92135.0,92131.0,0.00217052]
[1732061090808,0.00030069,92152.0,92130.0,0.1]
[1732061091025,0.00416992,92151.0,92130.0,0.1]
[1732061091894,0.00416992,92151.0,92131.0,0.00217052]
[1732061092101,0.00216992,92151.0,92131.0,0.00217052]
[1732061092306,0.00247061,92152.0,92131.0,0.00217052]
[1732061093415,0.00247061,92152.0,92131.0,0.00417052]
[1732061094333,0.00030069,92152.0,92133.0,0.1]
[1732061094553,0.00030069,92152.0,92142.0,0.24148574]
[1732061094762,0.00030069,92152.0,92144.0,0.24148574]
[1732061094964,0.00030069,92152.0,92145.0,0.3436559]
[1732061095175,0.00030069,92152.0,92147.0,0.1]
[1732061095389,0.00030069,92152.0,92145.0,0.34148574]
[1732061095390,0.00030069,92152.0,92148.0,0.00217016]
[1732061096481,0.00030069,92152.0,92149.0,0.00217016]
[1732061097483,0.00030069,92152.0,92149.0,0.24376267]
[1732061097692,0.00030069,92152.0,92149.0,0.24159251]
[1732061097924,0.00030069,92152.0,92148.0,0.04609529]
[1732061098294,0.00030069,92152.0,92150.0,0.24159251]
[1732061099357,0.00030069,92152.0,92149.0,0.006337]
[1732061099539,0.00030069,92152.0,92150.0,0.04445435]
[1732061099780,0.00030069,92152.0,92149.0,0.006337]
[1732061100015,0.00030069,92152.0,92149.0,0.24389635]
[1732061100260,0.00115529,92152.0,92147.0,0.004337]
[1732061100472,0.00115529,92152.0,92147.0,0.39457123]
[1732061100676,0.00115529,92152.0,92147.0,0.104337]
[1732061101106,0.00115529,92152.0,92147.0,0.004337]
[1732061101732,0.00115529,92152.0,92148.0,0.002]
[1732061102165,0.00115529,92152.0,92147.0,0.004337]
[1732061102378,0.00115529,92152.0,92149.0,0.24197409]
[1732061102612,0.00216992,92151.0,92147.0,0.002]
[1732061102816,0.00216992,92151.0,92143.0,0.24197409]
[1732061103019,0.00216992,92151.0,92142.0,0.24197409]
[1732061103220,0.00216992,92151.0,92148.0,0.002]
[1732061103478,0.002,92149.0,92148.0,0.002]
[1732061104619,0.002,92146.0,92139.0,0.24197409]
[1732061104847,0.002,92144.0,92139.0,0.24197409]
[1732061105068,0.002,92144.0,92143.0,0.002]
[1732061105294,0.04886992,92144.0,92143.0,0.002]
[1732061105509,0.04886992,92144.0,92128.0,0.24197409]
[1732061105738,0.04886992,92144.0,92119.0,0.29023423]
[1732061105739,0.00030069,92143.0,92127.0,0.24197409]
[1732061105961,0.00216992,92142.0,92127.0,0.24197409]
[1732061106858,0.00216992,92142.0,92117.0,0.08781348]
[1732061106859,0.00216992,92142.0,92129.0,0.24197409]
[1732061107112,0.00030069,92143.0,92135.0,0.24197409]
[1732061107528,0.00030069,92143.0,92136.0,0.24197409]
[1732061107749,0.00030069,92143.0,92136.0,0.24210995]
[1732061107977,0.00030069,92143.0,92129.0,0.24208116]
[1732061108207,0.00030069,92143.0,92130.0,0.00217059]
[1732061108692,0.00030069,92151.0,92130.0,0.00217059]
[1732061108911,0.00216992,92150.0,92130.0,0.00217059]
[1732061109358,0.00216992,92150.0,92130.0,0.002]
[1732061109583,0.10906255,92149.0,92130.0,0.002]
[1732061109801,0.00216992,92148.0,92130.0,0.002]
[1732061110232,0.10906255,92147.0,92130.0,0.002]
[1732061110452,0.0752,92145.0,92130.0,0.002]
[1732061110685,0.0752,92145.0,92121.0,0.0017092]
[1732061110686,0.15733247,92144.0,92121.0,0.0017092]
[1732061111184,0.15733247,92144.0,92130.0,0.002]
[1732061111398,0.15733247,92144.0,92121.0,0.0017092]
[1732061111865,0.00030069,92143.0,92121.0,0.0037092]
[1732061112077,0.11123247,92142.0,92121.0,0.0037092]
[1732061112287,0.11123247,92142.0,92121.0,0.0017092]
[1732061112513,0.11123247,92142.0,92130.0,0.002]
[1732061113412,0.0752,92141.0,92130.0,0.002]
[1732061113630,0.00216992,92140.0,92130.0,0.002]
[1732061113849,0.00216992,92140.0,92121.0,0.0017092]
[1732061114057,0.00216992,92140.0,92121.0,0.0037092]
[1732061114473,0.00216992,92140.0,92121.0,0.0017092]
[1732061114765,0.00030069,92139.0,92121.0,0.0017092]
[1732061114977,0.00216992,92138.0,92130.0,0.002]
[1732061115202,0.10906255,92137.0,92130.0,0.002]
[1732061115409,0.00216992,92136.0,92121.0,0.0017092]
[1732061115626,0.11123247,92136.0,92121.0,0.0037092]
[1732061116874,0.11123247,92136.0,92121.0,0.0017092]
[1732061117089,0.11123247,92136.0,92130.0,0.002]
[1732061117752,0.00030069,92135.0,92130.0,0.002]
[1732061117977,0.00216992,92134.0,92130.0,0.002]
[1732061118213,0.00216992,92134.0,92121.0,0.0017092]
[1732061118426,0.00216992,92134.0,92121.0,0.0037092]
[1732061119939,0.00216992,92134.0,92121.0,0.0017092]
[1732061120161,0.00216992,92134.0,92130.0,0.002]
[1732061120606,0.00216992,92134.0,92121.0,0.0017092]
[1732061121119,0.00216992,92134.0,92121.0,0.0037092]
[1732061122228,0.00030069,92135.0,92121.0,0.0037092]
[1732061122229,0.00030069,92135.0,92121.0,0.24580508]
[1732061122502,0.00030069,92135.0,92127.0,0.24199221]
[1732061122714,0.00030069,92135.0,92129.0,0.24199221]
[1732061123870,0.00030069,92143.0,92131.0,0.1]
[1732061124102,0.00030069,92143.0,92135.0,0.24199221]
[1732061124316,0.00030069,92143.0,92136.0,0.24199221]
[1732061125021,0.0008545,92139.0,92136.0,0.24199221]
[1732061125434,0.0008545,92139.0,92134.0,0.24199221]
[1732061125640,0.0008545,92139.0,92131.0,0.1]
[1732061125641,0.0008545,92139.0,92136.0,0.24199221]
[1732061125855,0.0008545,92139.0,92135.0,0.24199221]
[1732061126069,0.0008545,92139.0,92131.0,0.1]
[1732061126070,0.0008545,92139.0,92131.0,0.24199221]
[1732061126327,0.0008545,92139.0,92119.0,0.1]
[1732061126328,0.0008545,92139.0,92129.0,0.24199221]
[1732061126540,0.0008545,92139.0,92121.0,0.33579373]
[1732061126541,0.0008545,92139.0,92136.0,0.001]
[1732061126754,0.00030069,92138.0,92136.0,0.001]
[1732061126960,0.00030069,92138.0,92122.0,0.10906255]
[1732061127224,0.00030069,92138.0,92131.0,0.001]
[1732061127730,0.00030069,92138.0,92134.0,0.24218732]
[1732061127941,0.00030069,92138.0,92137.0,0.24218732]
[1732061128591,0.00030069,92138.0,92136.0,0.24318732]
[1732061129258,0.00030069,92138.0,92136.0,0.24218732]
[1732061129471,0.00030069,92138.0,92137.0,0.21123308]
[1732061129707,0.00030069,92138.0,92137.0,0.29173308]
[1732061129919,0.00030069,92138.0,92137.0,0.28956255]
[1732061130156,0.0008546,92144.0,92137.0,0.58002561]
[1732061130415,0.0008546,92144.0,92139.0,0.1]
[1732061130658,0.0008546,92144.0,92141.0,0.1]
[1732061130893,0.0008546,92144.0,92142.0,0.11123258]
[1732061131133,0.0008546,92144.0,92143.0,0.39045548]
[1732061131341,0.0008546,92144.0,92143.0,0.7264882]
[1732061131607,0.0008546,92152.0,92151.0,0.02]
[1732061131833,0.0008546,92152.0,92151.0,0.25423227]
[1732061132036,0.0008546,92152.0,92151.0,0.25206255]
[1732061133359,0.0008546,92152.0,92151.0,0.25506255]
[1732061134290,0.0008546,92152.0,92151.0,0.25306255]
[1732061134983,0.0008546,92152.0,92151.0,0.72433129]
[1732061135206,0.0008546,92152.0,92151.0,0.29645176]
[1732061135950,0.0008546,92152.0,92151.0,0.29845176]
[1732061137305,0.0008546,92152.0,92151.0,0.28645176]
[1732061137533,0.0008546,92152.0,92151.0,0.25345176]
[1732061138433,0.0008546,92152.0,92151.0,0.04338921]
[1732061138897,0.0008546,92152.0,92144.0,0.001708]
[1732061138898,0.0008546,92152.0,92145.0,0.28961454]
[1732061139108,0.0008546,92152.0,92144.0,0.001708]
[1732061139109,0.0008546,92152.0,92144.0,0.04553242]
[1732061139333,0.0008546,92152.0,92150.0,0.24134994]
[1732061139539,0.0008546,92152.0,92150.0,0.24135405]
[1732061139771,0.0008546,92152.0,92144.0,0.24306205]
[1732061139978,0.0008546,92152.0,92144.0,0.001708]
[1732061141099,0.0008546,92152.0,92145.0,0.00217023]
[1732061143332,0.0008546,92152.0,92144.0,0.001708]
[1732061145286,0.0497546,92152.0,92144.0,0.001708]
[1732061145493,0.00216992,92151.0,92144.0,0.001708]
[1732061145706,0.0497546,92152.0,92144.0,0.001708]
[1732061146457,0.00216992,92151.0,92144.0,0.001708]
[1732061147311,0.0787,92150.0,92144.0,0.001708]
[1732061147542,0.00216992,92149.0,92144.0,0.001708]
[1732061151396,0.0787,92148.0,92144.0,0.001708]
[1732061151623,0.00216992,92147.0,92144.0,0.001708]
[1732061152086,0.00216992,92147.0,92144.0,0.00074522]
[1732061152516,0.00216992,92147.0,92145.0,1.0]
[1732061157066,0.11123247,92147.0,92145.0,1.0]
[1732061157281,0.23666255,92146.0,92145.0,1.0]
[1732061159966,0.1276,92146.0,92145.0,1.0]
[1732061160177,0.0787,92146.0,92145.0,1.0]
[1732061160392,0.0008546,92152.0,92145.0,1.0]
[1732061161350,0.0008546,92152.0,92146.0,0.1]
[1732061164286,0.0008546,92152.0,92147.0,0.00217021]
[1732061164511,0.0008546,92152.0,92146.0,0.1]
[1732061164892,0.0008546,92152.0,92148.0,0.004337]
[1732061166698,0.0008546,92152.0,92146.0,0.1]
[1732061167990,0.0008546,92152.0,92148.0,0.1]
[1732061168238,0.0008546,92152.0,92150.0,0.1]
[1732061168478,0.0008546,92152.0,92151.0,0.00217003]
[1732061169193,0.0008543,92168.0,92151.0,0.00217003]
[1732061169426,0.0008543,92168.0,92153.0,0.24173149]
[1732061171141,0.0008543,92168.0,92150.0,0.20906255]
[1732061171142,0.0008543,92168.0,92150.0,0.34173149]
[1732061171340,0.0008543,92168.0,92145.0,1.0]
[1732061171341,0.1243,92161.0,92149.0,0.1]
[1732061171634,0.1243,92161.0,92148.0,0.04369406]
[1732061171635,0.00216992,92160.0,92148.0,0.04369406]
[1732061171840,0.1243,92161.0,92147.0,0.34173149]
[1732061171841,0.0759,92161.0,92147.0,0.34173149]
[1732061172308,0.00216992,92160.0,92146.0,0.24173149]
[1732061172525,0.10906255,92159.0,92145.0,1.0]
[1732061172748,0.05056992,92158.0,92145.0,1.0]
[1732061172926,0.10906255,92157.0,92145.0,1.0]
[1732061173183,0.07806992,92156.0,92145.0,1.0]
[1732061173398,0.10906255,92155.0,92145.0,1.0]
[1732061173634,0.00216992,92154.0,92145.0,1.0]
[1732061173838,0.10906255,92153.0,92150.0,1.0]
[1732061174072,0.00216992,92152.0,92150.0,1.0]
[1732061174292,0.10906255,92151.0,92150.0,1.0]
[1732061174713,0.18496255,92151.0,92150.0,1.0]
[1732061175393,0.23336255,92151.0,92150.0,1.0]
[1732061175646,0.24336255,92151.0,92150.0,1.0]
[1732061178935,0.25336255,92151.0,92150.0,1.0]
[1732061184651,0.23336255,92151.0,92150.0,1.0]
[1732061184878,0.23336255,92151.0,92150.0,1.000854]
[1732061185834,0.001708,92154.0,92150.0,1.000854]
[1732061189072,0.001708,92154.0,92151.0,0.004337]
[1732061189315,0.001708,92154.0,92150.0,1.000854]
[1732061192628,0.001708,92154.0,92150.0,0.81300352]
[1732061198686,0.001708,92154.0,92152.0,0.0827]
[1732061198921,0.001708,92154.0,92153.0,0.00217002]
[1732061200298,0.001708,92154.0,92152.0,0.1827]
[1732061200517,0.001708,92154.0,92150.0,0.81300352]
[1732061207779,0.001708,92154.0,92152.0,0.0796]
[1732061208002,0.001708,92154.0,92153.0,0.00216998]
[1732061209068,0.001708,92154.0,92153.0,0.21123253]
[1732061209500,0.001708,92154.0,92153.0,0.1]
[1732061210157,0.001708,92154.0,92153.0,0.34176198]
[1732061210382,0.001708,92154.0,92153.0,0.1]
[1732061211226,0.001708,92154.0,92150.0,0.81300352]
[1732061229650,0.001708,92154.0,92150.0,1.05472849]
[1732061230567,0.001708,92154.0,92151.0,0.24172497]
[1732061231007,0.001708,92154.0,92151.0,0.2423761]
[1732061231666,0.001708,92154.0,92153.0,0.2423761]
[1732061232295,0.001708,92154.0,92150.0,0.81300352]
[1732061232720,0.001708,92154.0,92151.0,0.0021703]
[1732061233655,0.001708,92154.0,92151.0,0.29302162]
[1732061233871,0.001708,92154.0,92151.0,0.29085132]
[1732061234074,0.001708,92154.0,92153.0,0.29085132]
[1732061234785,0.001708,92154.0,92150.0,0.81300352]
[1732061234786,0.001708,92154.0,92152.0,0.0788]
[1732061235002,0.001708,92154.0,92153.0,0.00217004]
[1732061236312,0.001708,92154.0,92153.0,0.20906255]
[1732061236522,0.001708,92160.0,92154.0,0.1]
[1732061236739,0.001708,92160.0,92159.0,0.39086777]
[1732061237257,0.001708,92160.0,92159.0,0.1]
[1732061238125,0.001708,92160.0,92159.0,0.0021698]
[1732061238391,0.001708,92160.0,92159.0,0.21123235]
[1732061239575,0.001708,92160.0,92159.0,0.2543387]
[1732061239802,0.001708,92160.0,92159.0,0.2621689]
[1732061240464,0.001708,92160.0,92159.0,0.10906255]
[1732061240678,0.001708,92160.0,92159.0,0.11123211]
[1732061241142,0.001708,92160.0,92159.0,0.23853211]
[1732061241368,0.001708,92160.0,92159.0,0.25936255]
[1732061242745,0.001708,92160.0,92159.0,0.35936255]
[1732061244255,0.001708,92160.0,92159.0,0.6496854]
[1732061245115,0.001708,92160.0,92159.0,0.35936255]
[1732061246648,0.001708,92160.0,92159.0,0.36569755]
[1732061247072,0.001708,92160.0,92159.0,0.36369755]
[1732061247949,0.001708,92160.0,92159.0,0.36569755]
[1732061248870,0.0008543,92162.0,92161.0,0.002]
[1732061249089,0.0008543,92162.0,92161.0,0.31663179]
[1732061249296,0.0008543,92162.0,92161.0,0.31446255]
[1732061250479,0.01,92200.0,92168.0,0.002]
[1732061250695,0.01,92200.0,92185.0,0.24138971]
[1732061251133,0.01,92198.0,92184.0,0.1]
[1732061252404,0.01,92198.0,92181.0,0.24138971]
[1732061252405,0.01,92198.0,92182.0,0.1]
[1732061253236,0.01,92198.0,92181.0,0.1]
[1732061254362,0.02,92201.0,92181.0,0.1]
[1732061254579,0.02,92201.0,92180.0,0.1]
[1732061254796,0.01,92198.0,92182.0,0.00216914]
[1732061255011,0.01,92201.0,92182.0,0.00216914]
[1732061255241,0.01,92198.0,92182.0,0.00216914]
[1732061255468,0.01,92201.0,92182.0,0.00216914]
[1732061255699,0.01,92198.0,92182.0,0.00216914]
[1732061255899,0.01,92201.0,92180.0,0.00216916]
[1732061256756,0.0777,92202.0,92181.0,0.10906255]
[1732061256959,0.0777,92202.0,92184.0,0.34138971]
[1732061257162,0.0777,92202.0,92183.0,0.023]
[1732061257163,0.0777,92202.0,92186.0,0.1]
[1732061257383,0.0785552,92209.0,92189.0,0.023]
[1732061257617,0.0785552,92209.0,92191.0,0.1]
[1732061257853,0.0785552,92209.0,92193.0,0.1]
[1732061258057,0.0785552,92209.0,92195.0,0.1]
[1732061258701,0.0885552,92209.0,92195.0,0.1]
[1732061259173,0.0885552,92209.0,92185.0,0.1]
[1732061259388,0.0885552,92209.0,92184.0,0.24138971]
[1732061259389,0.0885552,92209.0,92187.0,0.1]
[1732061259619,0.0885552,92209.0,92187.0,0.20906255]
[1732061260665,0.01,92205.0,92184.0,0.14377759]
[1732061260874,0.01,92205.0,92184.0,0.15284014]
[1732061261077,0.01,92201.0,92180.0,0.1]
[1732061261288,0.0797,92195.0,92183.0,0.04335564]
[1732061261494,0.0797,92195.0,92180.0,0.1]
[1732061261902,0.0453,92194.0,92180.0,0.1448984]
[1732061262101,0.0453,92194.0,92180.0,0.0448984]
[1732061262537,0.0453,92194.0,92173.0,0.1]